bitfinex/quotes_SOLUSD_20240725
["timestamp","ask_amount","ask_price","bid_price","bid_amount"]
[1721903489954,46.18755108,168.34,168.33,0.9679]
[1721903490152,17.56025108,168.37,168.33,0.9679]
[1721903490467,45.0,168.36,168.33,0.9679]
[1721903490665,17.56025108,168.37,168.33,0.9679]
[1721903490852,410.912,168.43,168.33,0.9679]
[1721903491052,1.18755108,168.42,168.33,0.9679]
[1721903491254,21.18755108,168.42,168.33,0.9679]
[1721903491461,5.9379,168.41,168.33,0.9679]
[1721903491763,7.12545108,168.41,168.33,0.9679]
[1721903491956,1.18755108,168.41,168.33,0.9679]
[1721903493167,6.16580178,168.45,168.33,0.9679]
[1721903493370,5.939,168.38,168.33,0.9679]
[1721903493572,1.18755108,168.37,168.33,0.9679]
[1721903494069,7.12685108,168.37,168.33,0.9679]
[1721903494655,5.9403,168.34,168.33,0.9679]
[1721903494861,52.12785108,168.34,168.33,0.9679]
[1721903495464,46.18755108,168.34,168.33,0.9679]
[1721903495789,52.12785108,168.34,168.33,0.9679]
[1721903496076,72.12785108,168.34,168.33,0.9679]
[1721903496369,107.84785108,168.34,168.33,0.9679]
[1721903497070,72.12785108,168.34,168.33,0.9679]
[1721903497449,66.18755108,168.34,168.33,0.9679]
[1721903497663,72.12785108,168.34,168.33,0.9679]
[1721903497973,6.3559,168.36,168.33,0.9679]
[1721903498267,21.18755108,168.35,168.33,0.9679]
[1721903498469,27.12755108,168.35,168.33,0.9679]
[1721903498673,21.18755108,168.35,168.33,0.9679]
[1721903499075,27.12785108,168.35,168.33,0.9679]
[1721903499375,50.9403,168.34,168.33,0.9679]
[1721903499564,70.9403,168.34,168.33,0.9679]
[1721903499876,106.6603,168.34,168.33,0.9679]
[1721903500186,5.9418,168.3,168.19,22.0586]
[1721903500477,45.0,168.29,168.19,22.0586]
[1721903500772,85.72,168.34,168.19,22.0586]
[1721903500976,20.0,168.34,168.2,1.18889142]
[1721903501355,20.0,168.35,168.21,1.18854583]
[1721903501555,20.0,168.35,168.21,1.1885459]
[1721903501751,6.3559,168.36,168.21,1.1885459]
[1721903501956,16.80192139,168.4,168.21,46.1885459]
[1721903501957,59.07422139,168.4,168.21,46.1885459]
[1721903502161,5.9388,168.39,168.22,20.0]
[1721903502377,59.07422139,168.4,168.23,46.18833555]
[1721903502651,63.9779,168.4,168.24,20.0]
[1721903502852,5.9386,168.39,168.25,45.0]
[1721903503054,5.9386,168.39,168.26,20.0]
[1721903503572,5.939,168.38,168.26,20.0]
[1721903503868,20.0,168.37,168.27,15.0744]
[1721903504070,20.0,168.39,168.28,26.4118]
[1721903504276,45.0,168.38,168.28,26.4118]
[1721903505000,5.9401,168.35,168.24,6.372]
[1721903505276,65.0,168.34,168.24,6.372]
[1721903506470,70.9403,168.34,168.24,6.372]
[1721903506876,5.9409,168.33,168.23,16.3619]
[1721903507070,5.9417,168.31,168.24,20.0]
[1721903507260,5.9411,168.32,168.24,20.0]
[1721903507461,45.0,168.3,168.2,6.5868]
[1721903507655,45.0,168.3,168.21,20.0]
[1721903507856,45.0,168.31,168.21,20.0]
[1721903508162,20.0,168.34,168.21,20.0]
[1721903508364,45.0,168.33,168.21,20.0]
[1721903508589,5.9409,168.33,168.21,20.0]
[1721903508795,45.0,168.32,168.21,20.0]
[1721903509005,25.94,168.35,168.21,20.0]
[1721903509477,5.9405,168.34,168.21,20.0]
[1721903509858,27.6037,168.32,168.21,20.0]
[1721903510477,5.9417,168.3,168.2,6.5868]
[1721903510685,45.0,168.29,168.2,6.5868]
[1721903510861,21.6626,168.32,168.2,6.5868]
[1721903511058,20.0,168.31,168.2,6.5868]
[1721903511263,35.72,168.27,168.16,0.8037985]
[1721903511469,41.6638,168.25,168.16,0.8037985]
[1721903511658,45.0,168.24,168.16,0.8037985]
[1721903511865,30.45,168.28,168.16,0.8037985]
[1721903512179,25.943,168.27,168.16,0.8037985]
[1721903512383,45.0,168.26,168.16,0.8037985]
[1721903512586,25.943,168.27,168.16,0.8037985]
[1721903513085,20.0,168.27,168.16,0.8037985]
[1721903513279,42.144,168.29,168.16,0.8037985]
[1721903513280,20.0,168.28,168.16,0.8037985]
[1721903513462,45.0,168.27,168.16,0.8037985]
[1721903514283,45.0,168.27,168.16,20.8037985]
[1721903514985,20.0,168.28,168.16,20.8037985]
[1721903515481,15.9501,168.3,168.16,20.8037985]
[1721903515674,15.9501,168.3,168.17,1.18893826]
[1721903516180,7.14646901,168.29,168.16,20.8037985]
[1721903516380,48.80886901,168.29,168.16,20.8037985]
[1721903516568,41.6624,168.29,168.16,20.8037985]
[1721903516768,45.0,168.28,168.16,20.8037985]
[1721903516970,45.0,168.29,168.16,20.8037985]
[1721903517288,7.14655471,168.28,168.16,20.8037985]
[1721903518064,45.0,168.27,168.16,0.8037985]
[1721903518270,7.14710434,168.26,168.16,0.8037985]
[1721903518470,45.0,168.25,168.16,0.8037985]
[1721903519078,45.0,168.26,168.16,0.8037985]
[1721903519479,7.14798444,168.25,168.16,0.8037985]
[1721903520288,21.8921,168.3,168.17,1.18910859]
[1721903520289,15.9501,168.3,168.17,1.18910859]
[1721903520510,7.14674543,168.29,168.18,1.18887036]
[1721903520694,389.2,168.31,168.16,21.99256811]
[1721903520906,7.14621021,168.3,168.16,21.99256811]
[1721903521205,7.14625418,168.29,168.16,21.99256811]
[1721903521403,7.14625418,168.28,168.16,20.8037985]
[1721903521586,7.14625418,168.3,168.16,20.8037985]
[1721903521781,13.08795418,168.3,168.16,20.8037985]
[1721903521980,7.14625418,168.29,168.16,20.8037985]
[1721903522300,7.14625418,168.28,168.16,20.8037985]
[1721903522476,395.36391953,168.31,168.17,1.18888139]
[1721903522672,27.14600269,168.3,168.18,1.18876848]
[1721903522878,7.14600269,168.29,168.18,1.18876848]
[1721903523505,7.14600269,168.28,168.18,21.18876848]
[1721903523686,6.16388657,168.32,168.19,45.0]
[1721903523880,7.14575142,168.31,168.2,20.0]
[1721903524110,7.14575142,168.31,168.21,6.0901]
[1721903524292,7.14575142,168.31,168.22,21.18844765]
[1721903524489,46.5091,168.4,168.23,45.0]
[1721903524712,7.14419349,168.39,168.24,21.18816858]
[1721903525011,13.08279349,168.39,168.24,21.18816858]
[1721903525185,7.14419349,168.38,168.24,21.18816858]
[1721903525381,7.14419349,168.37,168.26,21.7544]
[1721903525585,13.30777905,168.41,168.27,1.1881705]
[1721903525586,7.14419349,168.36,168.27,1.1881705]
[1721903525789,7.14419349,168.4,168.27,66.1881705]
[1721903525979,7.14419349,168.39,168.27,66.1881705]
[1721903526186,7.14419349,168.38,168.27,66.1881705]
[1721903526407,7.14419349,168.37,168.27,21.1881705]
[1721903526579,7.14419349,168.36,168.27,20.0]
[1721903526779,7.14419349,168.35,168.27,21.18827485]
[1721903527011,6.16125376,168.41,168.27,21.18827485]
[1721903527217,7.14321356,168.4,168.27,20.0]
[1721903527513,7.14321356,168.4,168.28,6.3064]
[1721903527681,7.14321356,168.4,168.29,66.18789076]
[1721903528018,7.14321356,168.4,168.3,1.18782271]
[1721903528304,7.14321356,168.39,168.3,1.18782271]
[1721903528510,7.14321356,168.38,168.3,1.18782271]
[1721903528690,9.3086606,168.46,168.32,6.516]
[1721903528885,7.14072555,168.45,168.33,66.18755201]
[1721903529696,7.14072555,168.44,168.34,30.45]
[1721903529897,254.1,168.48,168.35,66.18735941]
[1721903530096,7.1393961,168.47,168.36,1.18734769]
[1721903530309,7.1393961,168.46,168.37,22.4822]
[1721903530606,9.30489348,168.5,168.38,21.18716844]
[1721903530898,7.13888468,168.49,168.38,21.18716844]
[1721903531100,7.13888468,168.49,168.39,45.0]
[1721903531300,7.13888468,168.49,168.34,30.45]
[1721903531301,30.45,168.45,168.32,22.4822]
[1721903531494,14.8452,168.41,168.32,6.2587]
[1721903531801,5.9399,168.36,168.27,22.4822]
[1721903531981,45.2952,168.41,168.27,22.4822]
[1721903531982,7.13888468,168.35,168.27,22.4822]
[1721903532185,7.13888468,168.34,168.27,22.4822]
[1721903532482,5.9372,168.43,168.28,1.18823719]
[1721903532687,27.14339892,168.42,168.28,1.18823719]
[1721903532897,7.14339892,168.41,168.28,1.18823719]
[1721903533084,7.14339892,168.4,168.28,21.18823719]
[1721903533289,7.14339892,168.39,168.29,45.0]
[1721903533500,7.14339892,168.38,168.3,1.18785703]
[1721903533694,5.9363,168.46,168.3,21.18785703]
[1721903533903,3.27280557,168.47,168.3,21.18785703]
[1721903533904,5.9369,168.44,168.3,21.18785703]
[1721903534202,7.14173184,168.43,168.3,21.18785703]
[1721903534405,7.14173184,168.43,168.31,20.0]
[1721903534591,7.14173184,168.43,168.3,1.18785703]
[1721903535111,7.14173184,168.43,168.3,21.18785703]
[1721903535289,7.14173184,168.43,168.31,45.0]
[1721903535493,7.14173184,168.42,168.32,20.0]
[1721903535694,7.14173184,168.45,168.32,20.0]
[1721903535889,13.07823184,168.45,168.32,20.0]
[1721903536089,7.14173184,168.44,168.32,20.0]
[1721903536701,7.14173184,168.43,168.32,21.1877015]
[1721903536902,39.754894,168.48,168.33,1.1877178]
[1721903536903,7.14173184,168.42,168.33,1.1877178]
[1721903537101,7.14173184,168.41,168.33,46.1877178]
[1721903537298,7.14173184,168.4,168.34,20.0]
[1721903537606,45.690294,168.48,168.34,20.0]
[1721903537789,37.85387131,168.47,168.36,15.4469]
[1721903537985,7.14155235,168.46,168.36,15.4469]
[1721903538395,7.14155235,168.45,168.36,15.4469]
[1721903538589,7.14155235,168.44,168.36,15.4469]
[1721903538810,7.14155235,168.43,168.36,15.4469]
[1721903539108,5.9358,168.47,168.36,15.4469]
[1721903539407,7.14059807,168.46,168.36,15.4469]
[1721903539791,7.14059807,168.45,168.36,15.4469]
[1721903540118,7.14059807,168.44,168.36,15.4469]
[1721903540414,7.14059807,168.43,168.36,15.4469]
[1721903540610,7.14059807,168.47,168.36,15.4469]
[1721903541095,5.9365,168.45,168.36,15.4469]
[1721903541302,7.14059807,168.44,168.36,15.4469]
[1721903542012,7.14059807,168.43,168.36,15.4469]
[1721903542198,7.14059807,168.42,168.36,15.4469]
[1721903542511,9.304894,168.48,168.36,15.4469]
[1721903542712,7.14094613,168.47,168.36,15.4469]
[1721903542895,13.07684613,168.47,168.36,15.4469]
[1721903543213,7.14094613,168.46,168.36,15.4469]
[1721903543411,7.14094613,168.45,168.36,15.4469]
[1721903543599,7.14094613,168.44,168.36,16.63444165]
[1721903543789,7.14094613,168.47,168.36,16.63444165]
[1721903543998,9.304894,168.48,168.36,15.4469]
[1721903543999,7.14094613,168.46,168.36,15.4469]
[1721903544196,7.14094613,168.45,168.37,20.0]
[1721903544399,9.304894,168.48,168.37,20.0]
[1721903544400,7.14094613,168.44,168.37,20.0]
[1721903544611,7.14094613,168.47,168.37,20.0]
[1721903544815,7.14073995,168.46,168.38,45.0]
[1721903545007,7.14073995,168.45,168.39,20.0]
[1721903545214,6.16877669,168.49,168.39,20.0]
[1721903545423,7.14056863,168.48,168.4,46.1871654]
[1721903545727,7.14056863,168.48,168.39,20.0]
[1721903546304,7.14056863,168.48,168.37,20.0]
[1721903546921,13.07606863,168.48,168.37,20.0]
[1721903547118,58.07626863,168.47,168.37,20.0]
[1721903547305,7.14056863,168.46,168.36,15.4469]
[1721903548318,5.9369,168.44,168.36,15.4469]
[1721903548497,7.14056863,168.43,168.36,15.4469]
[1721903548701,50.9365,168.45,168.36,15.4469]
[1721903548912,7.14133884,168.44,168.36,15.4469]
[1721903550011,42.55377669,168.49,168.36,15.4469]
[1721903550012,6.16877669,168.49,168.36,15.4469]
[1721903550220,7.14072503,168.48,168.36,15.4469]
[1721903550426,7.14072503,168.48,168.37,45.0]
[1721903550830,7.14072503,168.48,168.36,15.4469]
[1721903551008,7.14072503,168.48,168.37,20.0]
[1721903551213,13.07612503,168.48,168.37,20.0]
[1721903551522,7.14072503,168.47,168.37,20.0]
[1721903551707,13.3069063,168.47,168.37,20.0]
[1721903551910,13.07682503,168.46,168.36,15.4469]
[1721903552106,7.14072503,168.45,168.36,15.4469]
[1721903552307,45.0,168.44,168.36,15.4469]
[1721903552609,7.14072503,168.43,168.36,15.4469]
[1721903554112,45.0,168.42,168.35,6.2231]
[1721903554433,45.0,168.42,168.32,16.5657]
[1721903554608,7.14179251,168.41,168.32,16.5657]
[1721903554817,5.9386,168.39,168.32,16.5657]
[1721903555010,7.14179251,168.38,168.28,15.3364]
[1721903555314,65.0,168.37,168.28,15.3364]
[1721903555515,65.0,168.37,168.27,6.5383]
[1721903555516,70.9395,168.37,168.27,6.5383]
[1721903555710,13.08376659,168.36,168.27,6.5383]
[1721903555925,52.14444938,168.35,168.24,15.3364]
[1721903556112,5.9396,168.36,168.24,15.3364]
[1721903556429,72.14466676,168.35,168.24,15.3364]
[1721903556611,5.9402,168.35,168.24,15.3364]
[1721903556810,71.4471,168.37,168.24,16.52496832]
[1721903557027,7.1446738,168.36,168.24,15.3364]
[1721903557234,65.0,168.35,168.25,20.0]
[1721903557426,7.14470183,168.34,168.25,20.0]
[1721903557631,65.0,168.35,168.25,20.0]
[1721903557826,7.14513232,168.34,168.25,20.0]
[1721903558531,7.14513232,168.34,168.24,15.3364]
[1721903559937,7.14513232,168.34,168.25,20.0]
[1721903561430,410.7526,168.38,168.25,20.0]
[1721903561431,7.14513232,168.33,168.25,20.0]
[1721903561618,15.6136,168.38,168.25,20.0]
[1721903561820,7.14491053,168.37,168.26,45.0]
[1721903562025,7.14491053,168.36,168.27,20.0]
[1721903562214,7.14491053,168.35,168.27,20.0]
[1721903562415,5.9386,168.39,168.27,20.0]
[1721903562642,13.0828422,168.38,168.27,20.0]
[1721903562813,7.1439422,168.37,168.27,20.0]
[1721903563013,6.15249364,168.41,168.29,6.6407]
[1721903563225,7.14329671,168.4,168.3,20.0]
[1721903563417,643.3,168.43,168.3,21.18799004]
[1721903563418,7.14329671,168.39,168.3,21.18799004]
[1721903563626,7.14329671,168.38,168.3,21.18799004]
[1721903563843,643.3,168.43,168.3,21.18799004]
[1721903564012,7.14232991,168.42,168.3,21.18799004]
[1721903564839,13.07982991,168.42,168.3,21.18799004]
[1721903565037,7.14232991,168.41,168.31,16.0444]
[1721903565224,7.14232991,168.41,168.32,20.0]
[1721903565535,7.14232991,168.41,168.33,1.18785901]
[1721903565715,7.14232991,168.4,168.32,20.0]
[1721903565923,7.14232991,168.39,168.32,20.0]
[1721903566250,7.14232991,168.38,168.32,20.0]
[1721903566418,389.2,168.43,168.32,20.0]
[1721903566620,13.08008647,168.42,168.32,20.0]
[1721903566817,52.14228647,168.41,168.32,20.0]
[1721903567046,52.14228647,168.41,168.31,16.0444]
[1721903567047,7.14228647,168.4,168.31,16.0444]
[1721903567332,5.9389,168.38,168.31,16.0444]
[1721903567549,27.14228647,168.4,168.31,16.0444]
[1721903567550,7.14228647,168.37,168.31,16.0444]
[1721903567749,7.14228647,168.39,168.31,16.0444]
[1721903567914,7.14228647,168.38,168.31,16.0444]
[1721903568119,7.14228647,168.37,168.31,16.0444]
[1721903568354,7.14228647,168.36,168.31,16.0444]
[1721903568655,7.14228647,168.35,168.31,16.0444]
[1721903568849,7.14228647,168.34,168.31,16.0444]
[1721903569144,5.9391,168.38,168.31,16.0444]
[1721903569453,7.14320203,168.37,168.29,6.6407]
[1721903569744,58.08290203,168.36,168.29,6.6407]
[1721903570045,7.14320203,168.35,168.29,6.6407]
[1721903570551,7.14320203,168.35,168.27,15.0132]
[1721903571337,7.14320203,168.35,168.25,6.4225]
[1721903571338,65.0,168.34,168.25,6.4225]
[1721903571542,13.08400203,168.33,168.25,6.4225]
[1721903571743,7.14320203,168.32,168.25,6.4225]
[1721903571946,7.14320203,168.31,168.25,6.4225]
[1721903572240,7.14320203,168.3,168.25,6.4225]
[1721903572447,70.9403,168.34,168.25,6.4225]
[1721903572650,7.14494971,168.33,168.25,6.4225]
[1721903573518,45.0,168.32,168.25,6.4225]
[1721903573720,7.14494971,168.31,168.25,6.4225]
[1721903573917,20.0,168.34,168.25,6.4225]
[1721903574243,13.08560017,168.33,168.25,6.4225]
[1721903574429,7.14490017,168.32,168.25,6.4225]
[1721903578019,7.14490017,168.32,168.23,16.0959]
[1721903578020,7.14490017,168.32,168.18,21.4645]
[1721903578220,7.14490017,168.32,168.18,22.65309438]
[1721903578443,7.14490017,168.32,168.19,45.0]
[1721903578656,45.0,168.31,168.19,45.0]
[1721903578939,20.0,168.34,168.2,1.18863532]
[1721903579127,20.0,168.34,168.19,46.18863532]
[1721903579128,7.14502023,168.33,168.19,45.0]
[1721903579530,7.14502023,168.33,168.2,1.1885022]
[1721903579936,7.14502023,168.33,168.18,21.4645]
[1721903580139,50.941,168.32,168.18,22.65323417]
[1721903580330,7.14502023,168.31,168.19,27.19]
[1721903580539,7.14502023,168.3,168.2,1.18850112]
[1721903580742,20.0,168.34,168.2,1.18850112]
[1721903580927,52.14536255,168.33,168.2,1.18850112]
[1721903581128,7.14536255,168.32,168.21,1.18850221]
[1721903581347,6.15302225,168.35,168.24,6.6619]
[1721903581645,7.14473251,168.34,168.25,73.3781047]
[1721903581851,7.14473251,168.34,168.26,20.0]
[1721903582023,7.14473251,168.34,168.24,6.6619]
[1721903582351,7.14473251,168.34,168.26,20.0]
[1721903582645,35.72,168.39,168.26,20.0]
[1721903582859,62.91,168.37,168.26,20.0]
[1721903583028,45.0,168.36,168.26,20.0]
[1721903583343,20.0,168.33,168.24,12.6054]
[1721903583531,20.0,168.33,168.25,5.9434]
[1721903584046,20.0,168.33,168.24,12.6057]
[1721903584429,20.0,168.33,168.24,6.6619]
[1721903584959,45.0,168.36,168.25,5.9432]
[1721903585268,27.19,168.4,168.26,21.18835939]
[1721903585457,27.19,168.4,168.3,5.9416]
[1721903585633,27.19,168.4,168.29,5.942]
[1721903586032,35.72,168.33,168.19,23.0652]
[1721903586229,5.9427,168.28,168.19,23.0652]
[1721903586457,5.943,168.27,168.19,23.0652]
[1721903586748,5.9424,168.28,168.19,23.0652]
[1721903587151,389.2,168.35,168.2,1.18889725]
[1721903587452,389.2,168.35,168.19,50.2552]
[1721903587453,5.9419,168.3,168.19,29.0107]
[1721903587659,27.19,168.33,168.19,23.0652]
[1721903587874,27.19,168.33,168.2,1.18869607]
[1721903588163,35.72,168.35,168.19,23.0652]
[1721903588164,5.9419,168.3,168.19,23.0652]
[1721903588350,45.0,168.29,168.19,29.0107]
[1721903588559,5.9427,168.28,168.19,23.0652]
[1721903588865,45.0,168.29,168.19,23.0652]
[1721903588866,70.9428,168.27,168.19,23.0652]
[1721903589033,25.9428,168.27,168.19,23.0652]
[1721903589235,45.0,168.26,168.19,23.0652]
[1721903589435,54.31774876,168.26,168.19,23.0652]
[1721903590267,54.31774876,168.26,168.16,6.7501985]
[1721903590433,54.31774876,168.26,168.17,5.9462]
[1721903590628,9.31774876,168.26,168.17,1.18897808]
[1721903590839,5.9416,168.31,168.2,5.945]
[1721903591064,9.31631932,168.28,168.16,1.99253493]
[1721903591356,9.31631932,168.28,168.21,5.9448]
[1721903592163,12.09864378,168.32,168.21,5.9448]
[1721903592336,6.15754378,168.32,168.2,5.9452]
[1721903592538,9.31548352,168.28,168.2,5.9452]
[1721903592750,5.9418,168.3,168.16,45.8037985]
[1721903592967,5.9422,168.29,168.17,20.0]
[1721903593249,54.31591927,168.28,168.16,0.8037985]
[1721903593556,7.14664376,168.27,168.16,0.8037985]
[1721903594141,60.25841927,168.28,168.16,0.8037985]
[1721903594439,5.9436,168.25,168.16,0.8037985]
[1721903594628,52.146862,168.24,168.16,0.8037985]
[1721903594827,45.0,168.24,168.16,0.8037985]
[1721903595248,437.89675115,168.23,168.16,0.8037985]
[1721903595431,87.89895115,168.22,168.16,0.8037985]
[1721903595633,5.9459,168.19,168.16,0.8037985]
[1721903595830,65.0,168.18,168.16,0.8037985]
[1721903596069,395.1456,168.19,168.16,0.8037985]
[1721903596070,389.2,168.19,168.16,0.8037985]
[1721903596554,7.1499323,168.18,168.16,0.8037985]
[1721903598141,389.2,168.19,168.16,0.8037985]
[1721903598548,7.15092958,168.18,168.16,0.8037985]
[1721903598935,389.2,168.19,168.16,0.8037985]
[1721903599962,28.7733,168.28,168.16,0.8037985]
[1721903600258,7.14932671,168.27,168.16,0.8037985]
[1721903600554,7.14932671,168.26,168.16,0.8037985]
[1721903600860,6.15754378,168.32,168.18,21.3334]
[1721903601161,643.3,168.36,168.19,46.18845863]
[1721903601341,643.3,168.36,168.2,20.0]
[1721903601342,7.14553046,168.35,168.2,20.0]
[1721903601658,7.14553046,168.35,168.21,46.18829085]
[1721903601860,7.14553046,168.35,168.22,20.0]
[1721903602057,7.14553046,168.35,168.23,46.18830529]
[1721903602254,13.08583046,168.35,168.24,20.0]
[1721903602559,7.14553046,168.34,168.24,20.0]
[1721903602859,7.14553046,168.34,168.22,20.0]
[1721903603051,7.14553046,168.35,168.19,1.18838962]
[1721903603254,7.14553046,168.34,168.19,66.18838962]
[1721903603445,5.9411,168.32,168.19,65.0]
[1721903603639,7.14553046,168.31,168.19,65.0]
[1721903603841,6.17484479,168.36,168.2,1.1885894]
[1721903604053,7.14534688,168.35,168.22,6.0245]
[1721903604242,7.14534688,168.35,168.24,15.057]
[1721903604452,7.14534688,168.35,168.25,1.187998]
[1721903604646,7.14534688,168.35,168.25,66.187998]
[1721903604964,6.17484479,168.36,168.25,66.187998]
[1721903605846,5.9385,168.39,168.25,66.187998]
[1721903605847,13.083647,168.4,168.25,66.187998]
[1721903606050,33.08242227,168.39,168.25,66.187998]
[1721903606242,7.14372227,168.38,168.25,66.187998]
[1721903606745,13.08282227,168.38,168.25,66.187998]
[1721903606946,7.14372227,168.37,168.25,21.187998]
[1721903607452,20.0,168.39,168.26,45.0]
[1721903607645,7.14334494,168.38,168.27,21.18809315]
[1721903609049,7.14334494,168.38,168.27,20.0]
[1721903609565,5.9393,168.37,168.24,15.057]
[1721903609865,7.14334494,168.36,168.25,66.18816055]
[1721903610237,5.9389,168.38,168.25,66.18816055]
[1721903610448,7.14399754,168.37,168.25,66.18816055]
[1721903610852,20.0,168.39,168.26,6.202]
[1721903611063,7.14309178,168.38,168.27,66.18798132]
[1721903611648,260.27395753,168.42,168.28,16.6565]
[1721903611843,7.14285058,168.41,168.29,66.18779216]
[1721903612172,7.14285058,168.41,168.3,1.18779305]
[1721903612844,7.14285058,168.41,168.31,6.1307]
[1721903613445,7.14285058,168.41,168.32,1.18775911]
[1721903613644,7.14285058,168.41,168.33,1.18763486]
[1721903614365,7.14285058,168.41,168.31,6.1307]
[1721903614561,7.14285058,168.41,168.32,46.1876591]
[1721903614761,7.14285058,168.41,168.33,1.1876597]
[1721903614944,7.14285058,168.41,168.32,45.0]
[1721903615144,7.14285058,168.41,168.34,15.4778]
[1721903615467,7.14285058,168.41,168.35,46.18755787]
[1721903615665,7.14285058,168.41,168.34,15.4778]
[1721903615961,7.14285058,168.41,168.35,46.18768886]
[1721903616169,7.14285058,168.41,168.34,15.4778]
[1721903617765,5.9383,168.4,168.34,15.4778]
[1721903617999,5.9388,168.39,168.31,6.1307]
[1721903618152,5.9381,168.41,168.32,1.18798067]
[1721903618350,5.9381,168.41,168.31,6.1307]
[1721903618351,7.14276583,168.4,168.31,7.31853088]
[1721903618558,13.08116583,168.4,168.31,6.1307]
[1721903618872,12.11145753,168.42,168.32,1.18784482]
[1721903619068,7.14250207,168.41,168.31,6.1307]
[1721903619368,7.14250207,168.41,168.31,7.31852178]
[1721903620248,13.08030207,168.41,168.31,7.31852178]
[1721903620448,5.9378,168.41,168.31,7.31852178]
[1721903622970,5.9382,168.4,168.31,7.31852178]
[1721903623169,6.17395753,168.42,168.31,6.1307]
[1721903623355,27.14243107,168.41,168.31,6.1307]
[1721903623557,5.9386,168.39,168.31,6.1307]
[1721903624474,25.939,168.38,168.31,6.1307]
[1721903624672,5.939,168.38,168.31,6.1307]
[1721903625374,7.14417871,168.37,168.26,22.3445]
[1721903625556,13.08407871,168.36,168.26,22.3445]
[1721903625755,5.9399,168.36,168.26,22.3445]
[1721903626457,7.14485057,168.35,168.26,22.3445]
[1721903626662,5.9399,168.36,168.26,22.3445]
[1721903627076,28.69954176,168.4,168.26,22.3445]
[1721903627077,5.9404,168.34,168.26,22.3445]
[1721903627454,5.9399,168.36,168.26,22.3445]
[1721903627653,7.14514683,168.35,168.26,22.3445]
[1721903628876,5.9399,168.36,168.26,22.3445]
[1721903629185,7.14522787,168.35,168.26,22.3445]
[1721903630249,13.08552787,168.35,168.26,22.3445]
[1721903630453,5.9397,168.36,168.26,22.3445]
[1721903630654,5.9389,168.38,168.26,22.3445]
[1721903630875,22.09314176,168.4,168.27,46.18820563]
[1721903631057,7.14381729,168.39,168.27,46.18820563]
[1721903631257,20.0,168.38,168.27,46.18820563]
[1721903632464,20.0,168.39,168.27,46.18820563]
[1721903632777,25.9386,168.39,168.27,46.18820563]
[1721903634659,6.18058313,168.41,168.27,73.34820563]
[1721903634883,7.14293368,168.4,168.28,20.0]
[1721903635188,395.1376,168.42,168.29,46.18783402]
[1721903635362,7.14306841,168.41,168.3,1.18791852]
[1721903635867,13.08096841,168.41,168.29,46.18791255]
[1721903636056,7.14306841,168.4,168.29,45.0]
[1721903636258,13.08096841,168.41,168.29,45.0]
[1721903636454,7.14306841,168.4,168.29,45.0]
[1721903636659,13.08136841,168.4,168.28,21.18791432]
[1721903636976,58.0817437,168.39,168.27,21.18796757]
[1721903637171,5.9393,168.37,168.26,23.53260882]
[1721903637357,7.14350364,168.38,168.27,1.18813269]
[1721903637358,5.9389,168.38,168.27,1.18813269]
[1721903637974,5.9389,168.38,168.26,22.3445]
[1721903637975,5.9389,168.38,168.26,23.53263174]
[1721903638370,50.9386,168.39,168.27,1.18813003]
[1721903638563,33.08271166,168.38,168.27,20.0]
[1721903638770,25.939,168.38,168.27,20.0]
[1721903639064,25.939,168.38,168.27,1.1881108]
[1721903639259,20.0,168.38,168.27,45.0]
[1721903639483,13.08376239,168.37,168.27,45.0]
[1721903639782,7.14436239,168.36,168.27,45.0]
[1721903639987,47.16,168.38,168.27,46.18813229]
[1721903640279,7.14434917,168.37,168.27,45.0]
[1721903640492,6.17469713,168.42,168.29,27.16]
[1721903640777,6.17469713,168.42,168.33,21.7311]
[1721903640989,43.4006,168.48,168.33,21.7311]
[1721903640990,43.4006,168.48,168.34,21.18751747]
[1721903641170,6.1698247,168.46,168.34,21.18751747]
[1721903641369,7.14129092,168.45,168.34,21.18751747]